{"text_format":"1","workbook":"xlsx","n_sheets":1,"sheets":["Price bid "],"not_rendered":{"charts":0,"images":0,"macros":1,"external_links":0,"defined_names":0,"comments":0,"pivot_tables":0},"unopened":[],"bounds":{"document_bytes":16777216,"sheet_cells":100000,"rows_first":2000,"rows_last":500,"rows_between":2000,"halvings":0,"cell_chars":16384,"cell_head_chars":4096},"cells_cut":0,"cells_raw":0,"read":"whole","date_system":"1900"}

{"sheet":"Price bid ","index":0,"n_rows":31,"n_cols":10,"rows_kept":31,"cut":false,"hidden":false,"merged":[[5,0,5,7],[0,0,0,8],[1,0,1,8],[2,0,2,8],[3,0,3,7],[4,0,4,2],[25,1,25,9],[26,1,26,9],[27,1,27,9],[18,0,18,7],[23,3,23,9]]}
["BHARAT HEAVY ELECTRICALS LIMITED, JHANSI"]
["FACTORY CIVIL  DEPARTMENT"]
["Price Bid (JS-146)"]
["Name of work -Repair of roads in factory area by laying of Paver blocks."]
["Tender No.FCX/TW/23/01"]
["Part A-DSR-ITEM "]
["S. \nNo.","Ref.No.","DESCRIPTION OF ITEM","% Allocation (Item-wise)","Unit ","Quantity ","Analysed rate of DSR-2016","Amount (in Rs.)","Rate per Unit (in Rs.)","Amount (in Rs.)"]
[1,"1.1.1/62","By Mechanical Transport including loading, unloading and stacking:  Lime, moorum, building rubbish",{"$f":"(H8*0.57)*1.05/441470.06","v":9.5999674360702975E-4},"cum",9,78.680000000000007,{"$f":"G8*F8","v":708.12000000000012},{"$f":"ROUND(J8/F8,2)","v":0},{"$f":"D8*$J$23","v":0}]
[2,"4.1.3/85","Providing and laying in position cement concrete of specified grade excluding the cost of centering and shuttering - All work up to plinth level : \"1:2:4 (1 cement : 2 coarse sand (zone-III) : 4 graded stone aggregate 20 mm nominal size). ",{"$f":"(H9*0.57)*1.05/441470.06","v":4.3864687675535675E-2},"cum",10,3235.58,{"$f":"G9*F9","v":32355.8},{"$f":"ROUND(J9/F9,2)","v":0},{"$f":"D9*$J$23","v":0}]
[3,"5.1.3/96","Providing and laying in position specified grade of reinforced cement concrete, excluding the cost of centering, shuttering, finishing and reinforcement - All work up to plinth level :  1:2:4 (1 cement : 2 coarse sand : 4 graded stone aggregate 20 mm nominal size) ",1.4341547691818555E-2,"cum",3,3526.24,10578.72,0,0]
[4,"5.22.6/99","Steel reinforcement for R.C.C. work including straightening, cutting, bending, placing in position and binding all complete upto plinth level. Thermo-Mechanically Treated bars of grade Fe-500D or more. ",1.5644075047807321E-3,"kg",105,10.99,1153.95,0,0]
[5,"6.1.2/109","Brick work with common burnt clay F.P.S. (non modular) bricks of class designation 7.5 in foundation and plinth in:  Cement mortar 1:6 (1 cement : 6 coarse sand) \n",2.6552900948707596E-2,"cum",5,3917.23,19586.150000000001,0,0]
[6,"11.3.1/187","Cement concrete flooring 1:2:4 (1 cement : 2 coarse sand : 4 graded stone aggregate) finished with a floating coat of neat cement, including cement slurry, but excluding the cost of nosing of steps etc. complete.40 mm thick with 20 mm nominal size stone aggregate\n",{"$f":"(H13*0.57)*1.05/441470.06","v":1.0685935621545885E-2},"sqm",32,246.32,7882.24,0,0]
[7,"15.2.1/253","Demolishing cement concrete manually/ by mechanical means including disposal of material within 50 metres lead as per direction of Engineer - in - charge.\nNominal concrete 1:3:6 or richer mix (i/c equivalent design mix)",2.7033970321792603E-3,"Cum",2,997.05,1994.1,0,0]
[8,"DSR Item","Any item in DSR 2016 but not listed above",6.7784891233620683E-3,"DSR-2016",5000,1,{"$f":"G15*F15","v":5000},0,0]
[null,null,"Total (A)",{"$f":"SUM(D8:D15)","v":0.10745136234153679}]
[]
[]
["Part B-Non DSR Items"]
["Sl. No.",null,"Description of Work",null,"Unit ","Quantity ","Rates as per W.O.","Amount (in Rs.)","Rate per Unit (in Rs.)","Amount (in Rs.)"]
[9,"Ns-1","Providing and laying 80 mm thick factory made cement concrete interlocking paver block of M-40 grade made by block making machine with rubber molded unifier finish strong vibratory compaction, of approved size, design & shape, laid in required colour (Red, yellow, Gray) and pattern over and including 50 mm thick compacted bed of stone dust, filling the joints with fine stone dust etc. all complete as per the direction of engineer – incharge.",{"$f":"(H21*1.05)/441470.06","v":0.89254863625406444},"Sqm",840,446.75,{"$f":"G21*F21","v":375270},{"$f":"ROUND(J21/F21,2)","v":0},{"$f":"D21*$J$23","v":0}]
[null,null,"Total (B)",{"$f":"SUM(D21)","v":0.89254863625406444}]
[null,null,"Grand Total   C=  (A+B)",{"$f":"D16+D22","v":0.99999999859560118},null,null,null,null,null,0]
[null,null,"IN WORDS",{"$f":"rup(J23)","v":0}]
[null,"Note -GST extra as applicable"]
[null,"1. Bidder has to quote in above unlocked cell (J-23) only. Item rate shall be calculated automatically. Calculated item rates upto two decimal points may be adjusted w.r.t. gross total amount and it shall be the itemwise final rate for  execution of contract and all other purposes."]
[null,"2. Quoted gross total amount should be considered only if quoted in this excel sheet and print out of this should only be considered for evaluation.  If Price is quoted in any other format other than the Excel Sheet enclosed to the NIT , the offer of the bidder  will be rejected"]
[null,"3.During the execution , the quantity of various items may vary to any extent depending on requirement of work/site and as per discretion of BHEL."]
[]
[]
[null,null,null,null,"(Signature and Seal of  Contractor  )"]